bitfinex-derivatives/quotes_BTCF0:USTF0_20241227
["timestamp","ask_amount","ask_price","bid_price","bid_amount"]
[1735291242637,0.051647,96932.0,96930.0,0.00454746]
[1735291242841,0.051647,96932.0,96930.0,0.00554746]
[1735291243738,0.001,96940.0,96930.0,0.00554746]
[1735291244544,0.001,96940.0,96930.0,0.05719446]
[1735291244939,0.001,96940.0,96930.0,0.05419446]
[1735291245238,0.01154644,96945.0,96930.0,0.05519446]
[1735291245443,0.051639,96946.0,96930.0,0.05519446]
[1735291245639,0.23653567,96980.0,96930.0,0.54008313]
[1735291245834,0.23653567,96980.0,96951.0,0.051636]
[1735291246029,0.23653567,96980.0,96930.0,0.24008313]
[1735291246030,0.05163,96964.0,96930.0,0.24008313]
[1735291246241,0.12262209,96975.0,96931.0,0.01116543]
[1735291246436,0.12262209,96975.0,96932.0,0.01116543]
[1735291246635,0.12262209,96975.0,96945.0,0.051639]
[1735291246838,0.12262209,96975.0,96933.0,0.01123117]
[1735291246839,0.051628,96967.0,96951.0,0.051636]
[1735291247147,0.001,96971.0,96960.0,0.051631]
[1735291247439,0.001,96971.0,96963.0,0.05163]
[1735291247741,0.001,96971.0,96970.0,0.051626]
[1735291248233,0.12262209,96991.0,96970.0,0.3]
[1735291248538,0.1,97000.0,96970.0,0.53653567]
[1735291248740,0.1,97000.0,96989.0,0.051616]
[1735291248932,0.1,97000.0,96970.0,0.53653567]
[1735291249137,0.1,97000.0,96991.0,0.051615]
[1735291249542,0.1,97000.0,96970.0,0.23653567]
[1735291249838,0.101,97000.0,96993.0,0.051614]
[1735291250040,0.101,97000.0,96970.0,0.53753567]
[1735291250238,0.101,97000.0,96971.0,0.01125123]
[1735291250442,0.101,97000.0,96994.0,0.051613]
[1735291250640,0.101,97000.0,96970.0,0.23753567]
[1735291250942,0.101,97000.0,96997.0,0.051612]
[1735291251329,0.101,97000.0,96999.0,0.051611]
[1735291252033,0.1,97000.0,96999.0,0.051611]
[1735291252434,0.102,97000.0,96971.0,0.1595]
[1735291252630,0.102,97000.0,96989.0,0.051616]
[1735291253337,0.102,97000.0,96991.0,0.051615]
[1735291253556,0.102,97000.0,96971.0,0.16855626]
[1735291253557,0.051612,96998.0,96981.0,0.05162]
[1735291253742,0.051612,96998.0,96982.0,0.051619]
[1735291253936,0.051614,96994.0,96982.0,0.051619]
[1735291254945,0.102,97000.0,96971.0,0.003]
[1735291254946,0.102,97000.0,96973.0,0.051624]
[1735291255149,0.101,97000.0,96989.0,0.002]
[1735291255533,0.1,97000.0,96989.0,0.002]
[1735291255741,0.001,96994.0,96986.0,0.051617]
[1735291256043,0.001,96994.0,96992.0,0.051614]
[1735291256244,0.1,97000.0,96982.0,0.003]
[1735291256452,0.1,97000.0,96996.0,0.051612]
[1735291256641,0.1,97000.0,96998.0,0.051611]
[1735291258037,0.12262209,97038.0,96998.0,0.351611]
[1735291258242,0.12262209,97038.0,97025.0,0.051597]
[1735291258941,0.12262209,97038.0,97010.0,0.15322716]
[1735291259149,0.1632,97046.0,97010.0,0.15322716]
[1735291259347,0.003,97038.0,97035.0,0.051591]
[1735291259742,0.002,97038.0,97035.0,0.051591]
[1735291260055,0.006,97038.0,97035.0,0.051591]
[1735291260748,0.004,97038.0,97035.0,0.051591]
[1735291260950,0.004,97038.0,97020.0,0.15322716]
[1735291261250,0.004,97038.0,97037.0,0.051591]
[1735291261447,0.005,97038.0,97037.0,0.051591]
[1735291261649,0.008,97038.0,97037.0,0.051591]
[1735291262042,0.003,97038.0,97037.0,0.051591]
[1735291262645,0.008,97038.0,97037.0,0.051591]
[1735291263852,0.005,97038.0,97037.0,0.051591]
[1735291264055,0.008,97038.0,97037.0,0.051591]
[1735291267553,0.17418909,97082.0,97037.0,0.051591]
[1735291267554,0.05156,97095.0,97081.0,0.051567]
[1735291267755,0.00154548,97110.0,97095.0,0.05156]
[1735291267949,0.183803,97101.0,97099.0,0.051558]
[1735291269660,0.00943711,97126.0,97099.0,0.051558]
[1735291269853,0.15322716,97120.0,97099.0,0.051558]
[1735291270052,0.102,97100.0,97099.0,0.051558]
[1735291271052,0.105,97100.0,97099.0,0.051558]
[1735291272248,0.00154494,97120.0,97119.0,0.051547]
[1735291272448,0.1525,97159.0,97110.0,0.15322716]
[1735291272648,0.051535,97142.0,97120.0,0.15322716]
[1735291272857,0.051535,97142.0,97110.0,0.15322716]
[1735291273062,0.051535,97142.0,97113.0,0.05155]
[1735291273263,0.051535,97142.0,97110.0,0.15322716]
[1735291273561,0.051535,97142.0,97127.0,0.051543]
[1735291274161,0.001,97142.0,97117.0,0.051548]
[1735291274350,0.051541,97132.0,97117.0,0.051548]
[1735291274556,0.001,97142.0,97117.0,0.051548]
[1735291274765,0.051544,97126.0,97117.0,0.051548]
[1735291275454,0.051545,97123.0,97111.0,0.051551]
[1735291275664,0.051549,97116.0,97107.0,0.00154461]
[1735291275867,0.15322716,97130.0,97107.0,0.00154461]
[1735291276069,0.051553,97109.0,97107.0,0.00154461]
[1735291276554,0.051547,97120.0,97107.0,0.00154461]
[1735291276757,0.00154498,97129.0,97107.0,0.00254461]
[1735291276960,0.051548,97117.0,97107.0,0.00254461]
[1735291277152,0.002,97126.0,97107.0,0.00254461]
[1735291277463,0.002,97126.0,97110.0,0.15322716]
[1735291277665,0.00154498,97129.0,97114.0,0.051549]
[1735291277972,0.30154498,97129.0,97107.0,0.00554461]
[1735291278161,0.05308698,97129.0,97107.0,0.00554461]
[1735291278462,0.00154498,97129.0,97110.0,0.15322716]
[1735291278664,0.00154498,97129.0,97118.0,0.051547]
[1735291278864,0.00154498,97129.0,97120.0,0.051546]
[1735291279168,0.00154498,97129.0,97119.0,0.15322716]
[1735291279469,0.00154498,97129.0,97107.0,0.00554461]
[1735291279673,0.0093971,97141.0,97119.0,0.15322716]
[1735291279971,0.051533,97146.0,97127.0,0.051543]
[1735291280157,0.15322716,97150.0,97120.0,0.001]
[1735291280465,0.051535,97141.0,97120.0,0.15422716]
[1735291280771,0.001,97129.0,97125.0,0.051544]
[1735291281164,0.16159186,97159.0,97125.0,0.051544]
[1735291281355,0.051533,97147.0,97125.0,0.051544]
[1735291281561,0.051535,97143.0,97125.0,0.051544]
[1735291282668,0.051535,97143.0,97127.0,0.051543]
[1735291283273,0.051536,97141.0,97127.0,0.051543]
[1735291283455,0.051531,97150.0,97120.0,0.15622716]
[1735291283656,0.16159186,97159.0,97130.0,0.15322716]
[1735291283857,0.001,97143.0,97135.0,0.051538]
[1735291284268,0.002,97143.0,97135.0,0.051538]
[1735291284862,0.001,97143.0,97135.0,0.051538]
[1735291285465,0.005,97143.0,97135.0,0.051538]
[1735291285869,0.005,97143.0,97125.0,0.051544]
[1735291286067,0.005,97143.0,97120.0,0.15322716]
[1735291286265,0.004,97143.0,97138.0,0.051537]
[1735291286766,0.051536,97141.0,97127.0,0.051542]
[1735291286962,0.051536,97141.0,97120.0,0.15322716]
[1735291287167,0.00912975,97146.0,97120.0,0.001]
[1735291287374,0.051537,97139.0,97127.0,0.051542]
[1735291287771,0.051536,97139.0,97138.0,0.001]
[1735291288271,0.001,97141.0,97120.0,0.15522716]
[1735291288574,0.051536,97140.0,97126.0,0.051543]
[1735291288770,0.051536,97140.0,97120.0,0.002]
[1735291288973,0.001,97141.0,97121.0,0.01113702]
[1735291289271,0.001,97141.0,97139.0,0.051536]
[1735291289573,0.051527,97156.0,97141.0,0.051535]
[1735291289973,0.051527,97156.0,97142.0,0.051534]
[1735291290366,0.06095133,97156.0,97142.0,0.051534]
[1735291290562,0.00942433,97156.0,97139.0,0.001]
[1735291290769,0.051525,97161.0,97139.0,0.001]
[1735291291082,0.011,97156.0,97149.0,0.051531]
[1735291291673,0.01,97156.0,97149.0,0.051531]
[1735291291873,0.01,97156.0,97153.0,0.051529]
[1735291292781,0.01,97156.0,97154.0,0.051528]
[1735291292986,0.006,97156.0,97154.0,0.051528]
[1735291293278,0.009,97156.0,97154.0,0.051528]
[1735291293678,0.00941324,97170.0,97161.0,0.051524]
[1735291293866,0.05306144,97176.0,97160.0,0.051525]
[1735291294278,0.05306144,97176.0,97163.0,0.051523]
[1735291294478,0.06246451,97176.0,97165.0,0.051523]
[1735291294782,0.01094751,97176.0,97154.0,0.002]
[1735291295079,0.01094751,97176.0,97164.0,0.051523]
[1735291295282,0.01094751,97176.0,97165.0,0.01127568]
[1735291295472,0.01094751,97176.0,97166.0,0.01127568]
[1735291295673,0.01094751,97176.0,97167.0,0.01127568]
[1735291295981,0.003,97170.0,97168.0,0.01128447]
[1735291296185,0.003,97170.0,97164.0,0.051523]
[1735291296475,0.003,97170.0,97165.0,0.01228442]
[1735291296680,0.051517,97175.0,97166.0,0.01128442]
[1735291296976,0.051517,97175.0,97167.0,0.01128442]
[1735291297178,0.051528,97155.0,97143.0,0.23102837]
[1735291297374,0.051528,97155.0,97144.0,0.01129651]
[1735291297685,0.051528,97155.0,97145.0,0.01126465]
[1735291297878,0.051528,97155.0,97146.0,0.01126465]
[1735291298177,0.051528,97155.0,97147.0,0.01126465]
[1735291298385,0.051528,97155.0,97148.0,0.01126465]
[1735291298682,0.051528,97155.0,97149.0,0.01126465]
[1735291298885,0.051528,97155.0,97150.0,0.01126465]
[1735291299086,0.051528,97155.0,97151.0,0.01126465]
[1735291299381,0.051528,97155.0,97152.0,0.01126465]
[1735291299382,0.052528,97155.0,97152.0,0.01126465]
[1735291299585,0.052528,97155.0,97153.0,0.01126465]
[1735291299789,0.051528,97155.0,97145.0,0.051533]
[1735291300083,0.004,97155.0,97146.0,0.01125792]
[1735291300284,0.004,97155.0,97147.0,0.06278992]
[1735291300490,0.007,97155.0,97148.0,0.01125792]
[1735291300676,0.01434543,97155.0,97149.0,0.01125792]
[1735291300985,0.007,97155.0,97150.0,0.011224]
[1735291301187,0.005,97155.0,97154.0,0.051529]
[1735291301493,0.051518,97175.0,97163.0,0.051524]
[1735291301675,0.051518,97175.0,97164.0,0.01122525]
[1735291301870,0.051518,97175.0,97163.0,0.051524]
[1735291301871,0.051518,97175.0,97165.0,0.01122525]
[1735291302084,0.051518,97175.0,97166.0,0.01122525]
[1735291302383,0.051519,97173.0,97167.0,0.01122525]
[1735291302586,0.051519,97173.0,97168.0,0.01122525]
[1735291302787,0.051519,97173.0,97169.0,0.01122525]
[1735291303084,0.00895641,97176.0,97170.0,0.01122525]
[1735291303382,0.00895641,97176.0,97149.0,0.1868812]
[1735291303383,0.05152,97171.0,97166.0,0.001]
[1735291303583,0.05152,97171.0,97167.0,0.01122701]
[1735291303779,0.05152,97171.0,97166.0,0.001]
[1735291303780,0.051521,97169.0,97166.0,0.001]
[1735291304375,0.051521,97169.0,97167.0,0.01120684]
[1735291304576,0.051521,97169.0,97159.0,0.051525]
[1735291304577,0.051521,97169.0,97168.0,0.01120689]
[1735291304885,0.055521,97169.0,97168.0,0.01120689]
[1735291306381,0.056521,97169.0,97168.0,0.01120689]
[1735291306987,0.005,97169.0,97168.0,0.01118882]
[1735291307284,0.014,97169.0,97168.0,0.01118882]
[1735291307676,0.014,97169.0,97168.0,0.06270982]
[1735291308187,0.014,97169.0,97168.0,0.06370982]
[1735291310278,0.014,97169.0,97168.0,0.01218882]
[1735291310480,0.014,97169.0,97168.0,0.06370982]
[1735291311279,0.014,97169.0,97168.0,0.01218882]
[1735291311684,0.014,97169.0,97168.0,0.001]
[1735291311889,0.051525,97161.0,97160.0,0.17949437]
[1735291312783,0.3,97161.0,97133.0,0.05308422]
[1735291312974,0.15322716,97150.0,97134.0,0.01115289]
[1735291313285,0.051534,97144.0,97133.0,0.05308422]
[1735291313480,0.051534,97144.0,97134.0,0.0626919]
[1735291313783,0.051534,97144.0,97135.0,0.0111529]
[1735291313990,0.051534,97144.0,97136.0,0.0111529]
[1735291314282,0.051534,97144.0,97137.0,0.0111529]
[1735291314482,0.051534,97144.0,97138.0,0.0111529]
[1735291314690,0.153788,97155.0,97139.0,0.0111529]
[1735291314691,0.051529,97153.0,97139.0,0.0111529]
[1735291314989,0.051529,97153.0,97148.0,0.051532]
[1735291314990,0.153788,97153.0,97148.0,0.051532]
[1735291315184,0.153788,97153.0,97149.0,0.01107422]
[1735291315385,0.05153,97152.0,97140.0,0.051536]
[1735291315777,0.05153,97152.0,97144.0,0.051534]
[1735291315973,0.05153,97152.0,97145.0,0.01107353]
[1735291316190,0.05153,97152.0,97144.0,0.051534]
[1735291316191,0.05153,97152.0,97146.0,0.01107353]
[1735291316384,0.15968064,97155.0,97148.0,0.051532]
[1735291316580,0.15968064,97155.0,97140.0,0.001]
[1735291316782,0.15968064,97155.0,97141.0,0.01105591]
[1735291317083,0.15968064,97155.0,97142.0,0.01105591]
[1735291317294,0.15968064,97155.0,97140.0,0.003]
[1735291317295,0.001,97152.0,97149.0,0.051531]
[1735291317791,0.153788,97157.0,97150.0,0.01109323]
[1735291317982,0.153788,97157.0,97149.0,0.051531]
[1735291317983,0.153788,97157.0,97151.0,0.01109323]
[1735291318178,0.153788,97157.0,97152.0,0.01109323]
[1735291318179,0.051529,97153.0,97152.0,0.01109323]
[1735291318378,0.153788,97157.0,97152.0,0.01109323]
[1735291318580,0.153788,97157.0,97155.0,0.051528]
[1735291318784,0.153788,97157.0,97141.0,0.002]
[1735291318985,0.153788,97157.0,97149.0,0.051531]
[1735291319293,0.153788,97157.0,97150.0,0.0110689]
[1735291319590,0.153788,97157.0,97141.0,0.002]
[1735291319591,0.153788,97157.0,97155.0,0.051528]
[1735291320186,0.002,97157.0,97155.0,0.051528]
[1735291320586,0.153788,97164.0,97155.0,0.051528]
[1735291320788,0.153788,97164.0,97134.0,0.1589]
[1735291320789,0.004,97157.0,97135.0,0.00154443]
[1735291320990,0.15322716,97150.0,97144.0,0.051534]
[1735291321188,0.057527,97157.0,97145.0,0.01107958]
[1735291321384,0.057527,97157.0,97137.0,0.051537]
[1735291321385,0.006,97157.0,97137.0,0.051537]
[1735291321582,0.006,97157.0,97142.0,0.051535]
[1735291321788,0.006,97157.0,97135.0,0.00154443]
[1735291321988,0.15322716,97150.0,97136.0,0.01107988]
[1735291322194,0.006,97157.0,97135.0,0.00154443]
[1735291322386,0.051532,97147.0,97136.0,0.0110769]
[1735291322581,0.1511,97159.0,97137.0,0.01106624]
[1735291322785,0.051528,97156.0,97135.0,0.00354443]
[1735291323094,0.153788,97157.0,97136.0,0.0150645]
[1735291323289,0.153788,97157.0,97154.0,0.051528]
[1735291323498,0.153788,97157.0,97156.0,0.051527]
[1735291323894,0.183803,97162.0,97137.0,0.003]
[1735291324083,0.183803,97162.0,97160.0,0.051525]
[1735291325188,0.15416025,97170.0,97140.0,0.15322716]
[1735291325389,0.15416025,97170.0,97165.0,0.051522]
[1735291325584,0.15416025,97170.0,97140.0,0.45322716]
[1735291325788,0.15416025,97170.0,97167.0,0.051521]
[1735291326598,0.009,97170.0,97167.0,0.051521]
[1735291327092,0.051519,97173.0,97167.0,0.051521]
[1735291327296,0.013,97170.0,97167.0,0.052521]
[1735291328600,0.013,97170.0,97167.0,0.051521]
[1735291328789,0.004,97170.0,97167.0,0.052521]
[1735291329402,0.004,97170.0,97167.0,0.001]
[1735291329589,0.051521,97169.0,97167.0,0.001]
[1735291329794,0.051521,97169.0,97159.0,0.051526]
[1735291329994,0.051521,97169.0,97167.0,0.001]
[1735291330195,0.009,97170.0,97167.0,0.001]
[1735291330390,0.013,97170.0,97167.0,0.001]
[1735291330592,0.01766447,97218.0,97167.0,0.001]
[1735291330593,0.15416208,97172.0,97167.0,0.001]
[1735291330797,0.00597654,97195.0,97178.0,0.051516]
[1735291331101,0.00597654,97195.0,97168.0,0.01123506]
[1735291331102,0.00597654,97195.0,97188.0,0.05151]
[1735291331501,0.00597654,97195.0,97180.0,0.15322716]
[1735291331502,0.37146873,97199.0,97180.0,0.15322716]
[1735291331692,0.37146873,97199.0,97198.0,0.051505]
[1735291332101,0.1,97200.0,97181.0,0.1552]
[1735291332294,0.1,97200.0,97184.0,0.051512]
[1735291332295,0.051509,97192.0,97184.0,0.051512]
[1735291332493,0.009,97190.0,97188.0,0.001]
[1735291332694,0.009,97190.0,97188.0,0.05251]
[1735291333208,0.1,97200.0,97195.0,0.051507]
[1735291333209,0.015,97199.0,97195.0,0.051507]
[1735291333705,0.009,97199.0,97195.0,0.051507]
[1735291334000,0.009,97199.0,97180.0,0.15322716]
[1735291334301,0.009,97199.0,97197.0,0.051505]
[1735291334609,0.1,97200.0,97197.0,0.051505]
[1735291335294,0.003,97199.0,97197.0,0.051505]
[1735291335803,0.103,97200.0,97197.0,0.051505]
[1735291336004,0.005,97199.0,97197.0,0.051505]
[1735291336409,0.008,97199.0,97197.0,0.052505]
[1735291336716,0.003,97199.0,97197.0,0.052505]
[1735291336915,0.006,97199.0,97197.0,0.052505]
[1735291338011,0.003,97199.0,97197.0,0.052505]
[1735291338413,0.003,97199.0,97197.0,0.051505]
[1735291338612,0.005,97199.0,97197.0,0.052505]
[1735291339306,0.051495,97217.0,97197.0,0.001]
[1735291339507,0.051495,97217.0,97211.0,0.051498]
[1735291339709,0.00581402,97217.0,97197.0,0.001]
[1735291340008,0.051491,97225.0,97200.0,0.15322716]
[1735291340406,0.051491,97225.0,97219.0,0.051494]
[1735291340604,0.12321698,97232.0,97210.0,0.15322716]
[1735291340814,0.00583708,97232.0,97229.0,0.051489]
[1735291341008,0.05302958,97235.0,97229.0,0.051489]
[1735291341809,0.001,97232.0,97229.0,0.051489]
[1735291342216,0.05907604,97235.0,97229.0,0.051489]
[1735291342413,0.05907604,97235.0,97229.0,0.003]
[1735291342414,0.00759004,97235.0,97229.0,0.003]
[1735291342718,0.00604646,97235.0,97233.0,0.051487]
[1735291342912,0.09192823,97243.0,97242.0,0.051482]
[1735291343118,0.09798356,97243.0,97242.0,0.051482]
[1735291343312,0.09192823,97243.0,97242.0,0.051482]
[1735291344219,0.00590214,97244.0,97232.0,0.051487]
[1735291344424,0.1451,97253.0,97242.0,0.001]
[1735291344613,0.051481,97243.0,97242.0,0.001]
[1735291345426,0.15322716,97252.0,97222.0,0.051492]
[1735291345629,0.051485,97236.0,97226.0,0.05149]
[1735291346117,0.051485,97236.0,97200.0,0.15322716]
[1735291346118,0.005,97243.0,97211.0,0.14671637]
[1735291346323,1.9e-07,97263.0,97253.0,0.051476]
[1735291346528,0.05147119,97263.0,97254.0,0.051475]
[1735291347121,0.05147119,97263.0,97233.0,0.15322716]
[1735291347122,0.051472,97262.0,97242.0,0.001]
[1735291347320,0.051472,97262.0,97249.0,0.051478]
[1735291347727,0.00596098,97263.0,97254.0,0.004]
[1735291347927,0.051475,97256.0,97254.0,0.004]
[1735291348326,0.00596098,97263.0,97262.0,0.051471]
[1735291348522,0.00596098,97263.0,97253.0,0.001]
[1735291348718,0.00596098,97263.0,97261.0,0.051472]
[1735291348917,0.15322716,97290.0,97253.0,0.001]
[1735291348918,0.15322716,97290.0,97260.0,0.3656]
[1735291349120,0.051465,97274.0,97260.0,0.3656]
[1735291349418,0.00154246,97294.0,97260.0,0.08958284]
[1735291349621,0.00154246,97294.0,97281.0,0.417061]
[1735291350023,0.051455,97293.0,97281.0,0.417061]
[1735291350416,0.00154246,97294.0,97281.0,0.45518284]
[1735291350620,0.051456,97292.0,97281.0,0.3656]
[1735291350823,0.00154246,97294.0,97281.0,0.3656]
[1735291351030,0.05146,97284.0,97281.0,0.3656]
[1735291351229,0.30154246,97294.0,97281.0,0.3656]
[1735291351421,0.051455,97293.0,97281.0,0.3656]
[1735291351621,0.051457,97289.0,97281.0,0.3666]
[1735291351928,0.051445,97311.0,97281.0,0.3666]
[1735291351929,0.051458,97287.0,97281.0,0.3666]
[1735291352327,0.051458,97287.0,97281.0,0.3686]
[1735291352623,0.4483,97310.0,97282.0,0.3656]
[1735291352824,0.4483,97310.0,97261.0,0.25219378]
[1735291352825,0.051461,97282.0,97271.0,0.34090688]
[1735291353017,0.051463,97278.0,97271.0,0.34090688]
[1735291353615,0.051464,97277.0,97271.0,0.34090688]
[1735291353915,0.00154253,97303.0,97273.0,0.34090688]
[1735291354119,0.051457,97290.0,97280.0,0.15322716]
[1735291354327,0.051457,97290.0,97273.0,0.34090688]
[1735291354328,0.00154253,97303.0,97281.0,0.001]
[1735291354534,0.05146,97282.0,97281.0,0.34190688]
[1735291354827,0.05146,97282.0,97281.0,0.34090688]
[1735291355525,0.15322716,97300.0,97281.0,0.34090688]
[1735291355732,0.05146,97282.0,97281.0,0.34190688]
[1735291356528,0.05146,97282.0,97281.0,0.34090688]
[1735291357622,0.001,97300.0,97282.0,0.34090688]
[1735291357820,0.051453,97297.0,97285.0,0.051459]
[1735291358023,0.051454,97295.0,97285.0,0.11234569]
[1735291358924,0.15322716,97300.0,97284.0,0.34090688]
[1735291359124,0.051458,97286.0,97285.0,0.34090688]
[1735291359325,0.051459,97284.0,97283.0,0.34090688]
[1735291360637,0.051454,97294.0,97277.0,0.051463]
[1735291360932,0.15322716,97300.0,97285.0,0.001]
[1735291361138,0.051458,97286.0,97285.0,0.001]
[1735291361632,0.051458,97286.0,97266.0,0.051469]
[1735291361840,0.051461,97280.0,97277.0,0.004]
[1735291362030,0.051462,97279.0,97278.0,0.34090688]
[1735291363438,0.00582879,97285.0,97284.0,0.051459]
[1735291363643,0.001,97286.0,97284.0,0.051459]
[1735291363933,0.05145,97301.0,97284.0,0.11234569]
[1735291364126,0.05890226,97301.0,97284.0,0.11234569]
[1735291364531,0.05890226,97301.0,97292.0,0.24219378]
[1735291365038,0.05890226,97301.0,97292.0,0.35453947]
[1735291365540,0.05890226,97301.0,97295.0,0.24219378]
[1735291365936,0.05890226,97301.0,97295.0,0.35453947]
[1735291366439,0.05890226,97301.0,97299.0,0.34090688]
[1735291366635,0.00154253,97303.0,97299.0,0.34090688]
[1735291366940,0.05145,97301.0,97300.0,0.24219378]
[1735291368245,0.35145,97301.0,97300.0,0.24219378]
[1735291368537,0.35145,97301.0,97300.0,0.20897731]
[1735291368736,0.35245,97301.0,97300.0,0.18144661]
[1735291368944,0.05245,97301.0,97299.0,0.34090688]
[1735291370735,0.001,97301.0,97299.0,0.34090688]
[1735291371048,0.001,97301.0,97299.0,0.45325257]
[1735291371439,0.051451,97300.0,97299.0,0.34090688]
[1735291373144,0.051452,97298.0,97297.0,0.66864501]
[1735291373547,0.051452,97298.0,97297.0,0.3656]
[1735291373745,0.051471,97263.0,97261.0,0.37096842]
[1735291373948,0.051471,97263.0,97253.0,0.17882561]
[1735291374141,0.05148,97245.0,97244.0,0.37733455]
[1735291374346,0.05148,97245.0,97244.0,0.29516767]
[1735291375042,0.3,97245.0,97227.0,0.1467]
[1735291375248,0.3,97245.0,97214.0,0.01]
[1735291375249,0.051489,97228.0,97215.0,0.3656]
[1735291375441,0.051495,97216.0,97214.0,0.12234569]
[1735291375636,0.051495,97216.0,97214.0,0.11234569]
[1735291375837,0.051499,97210.0,97208.0,0.1544]
[1735291376046,0.051499,97210.0,97209.0,0.01113212]
[1735291376244,0.051499,97210.0,97208.0,0.26674569]
[1735291376546,0.15322716,97225.0,97193.0,0.00154352]
[1735291376547,0.051503,97201.0,97193.0,0.00154352]
[1735291376741,0.051503,97201.0,97194.0,0.1544]
[1735291377142,0.051507,97195.0,97193.0,0.00154352]
[1735291377356,0.051518,97174.0,97173.0,0.1552]
[1735291378053,0.15322716,97183.0,97154.0,0.3656]
[1735291378243,0.051528,97155.0,97154.0,0.1552]
[1735291378449,0.051528,97155.0,97153.0,0.00154392]
[1735291379646,0.05153,97151.0,97137.0,0.5208]
[1735291379948,0.0015443,97175.0,97153.0,0.006]
[1735291380253,0.051523,97164.0,97154.0,0.1472]
[1735291380649,0.051523,97164.0,97154.0,0.25954569]
[1735291381449,0.0015443,97175.0,97160.0,0.051525]
[1735291381654,0.051515,97180.0,97163.0,0.01]
[1735291381855,0.051515,97180.0,97163.0,0.12234569]
[1735291382149,0.15322716,97190.0,97163.0,0.12234569]
[1735291382354,0.051511,97188.0,97169.0,0.3656]
[1735291382755,0.051511,97188.0,97169.0,0.47794569]
[1735291383344,0.15322716,97190.0,97169.0,0.47794569]
[1735291383549,0.051511,97186.0,97169.0,0.47794569]
[1735291383751,0.051511,97186.0,97170.0,0.3656]
[1735291384055,0.051512,97185.0,97170.0,0.3656]
[1735291384252,0.051512,97185.0,97170.0,0.47794569]
[1735291384642,0.00925498,97205.0,97179.0,0.01]
[1735291384845,0.051507,97195.0,97181.0,0.3656]
[1735291385457,0.051505,97199.0,97181.0,0.47794569]
[1735291385649,0.051506,97196.0,97181.0,0.47794569]
[1735291385851,0.15322716,97191.0,97181.0,0.47794569]
[1735291386049,0.051513,97182.0,97181.0,0.47794569]
[1735291386550,0.15322716,97191.0,97171.0,0.1421]
[1735291386852,0.051519,97172.0,97171.0,0.1421]
[1735291387052,0.15322716,97181.0,97162.0,0.3656]
[1735291387248,0.051526,97159.0,97155.0,0.3656]
[1735291387446,0.15322716,97164.0,97154.0,0.25954569]
[1735291388156,0.051527,97156.0,97154.0,0.25954569]
[1735291389453,0.051527,97156.0,97155.0,0.006]
[1735291389853,0.00919233,97169.0,97155.0,0.11834569]
[1735291390051,0.23561253,97170.0,97155.0,0.11234569]
[1735291390052,0.051523,97164.0,97155.0,0.11234569]
[1735291390257,0.051525,97162.0,97155.0,0.11234569]
[1735291390557,0.051525,97160.0,97155.0,0.11234569]
[1735291390945,0.24490997,97170.0,97155.0,0.11234569]
[1735291391148,0.24490997,97170.0,97155.0,0.11734569]
[1735291391946,0.051525,97161.0,97155.0,0.11734569]
[1735291392146,0.051526,97160.0,97155.0,0.11734569]
[1735291392562,0.051526,97160.0,97155.0,0.12034569]
[1735291393059,0.051521,97169.0,97155.0,0.11734569]
[1735291393260,0.051521,97169.0,97155.0,0.12034569]
[1735291393661,0.24490997,97170.0,97155.0,0.12034569]
[1735291394055,0.051524,97163.0,97155.0,0.12034569]
[1735291394755,0.051525,97161.0,97155.0,0.12034569]
[1735291395855,0.051527,97156.0,97155.0,0.008]
[1735291396464,0.051527,97156.0,97155.0,0.005]
[1735291396658,0.05154,97131.0,97130.0,0.3656]
[1735291396859,0.23561253,97140.0,97118.0,0.3656]
[1735291397166,0.051546,97120.0,97118.0,0.3656]
[1735291397362,0.051547,97118.0,97117.0,0.0015445]
[1735291398562,0.23561253,97140.0,97117.0,0.11389019]
[1735291398754,0.00154457,97151.0,97119.0,0.051547]
[1735291398755,0.23561253,97150.0,97119.0,0.051547]
[1735291398951,0.051536,97139.0,97119.0,0.051547]
[1735291399165,0.28715353,97130.0,97119.0,0.11234569]
[1735291399364,0.051541,97130.0,97119.0,0.11234569]
[1735291400151,0.051541,97130.0,97119.0,0.12134569]
[1735291400357,0.28814853,97140.0,97120.0,0.051546]
[1735291400559,0.001,97130.0,97120.0,0.051546]
[1735291400762,0.002,97130.0,97120.0,0.16389169]
[1735291401063,0.002,97130.0,97120.0,0.11234569]
[1735291401265,0.051546,97121.0,97119.0,0.015]
[1735291401959,0.051546,97121.0,97119.0,0.009]
[1735291402160,0.051546,97121.0,97120.0,0.006]
[1735291402853,0.052546,97121.0,97120.0,0.009]
[1735291403267,0.052546,97121.0,97119.0,0.006]
[1735291403460,0.052546,97121.0,97120.0,0.009]
[1735291403656,0.051546,97121.0,97120.0,0.009]
[1735291403862,0.051546,97121.0,97120.0,0.015]
[1735291404458,0.051546,97121.0,97120.0,0.006]
[1735291404870,0.051556,97101.0,97099.0,0.0015449]
[1735291405060,0.051556,97101.0,97083.0,0.01]
[1735291405263,0.051569,97077.0,97074.0,0.3656]
[1735291405469,0.051569,97077.0,97075.0,0.01108737]
[1735291405670,0.051569,97077.0,97076.0,0.01108737]
[1735291406167,0.23561253,97093.0,97065.0,0.3656]
[1735291406370,0.051572,97072.0,97065.0,0.3656]
[1735291406561,0.23561253,97074.0,97065.0,0.47794569]
[1735291406870,0.051575,97067.0,97065.0,0.3656]
[1735291407562,0.051578,97061.0,97052.0,0.3656]
[1735291407760,0.23561253,97060.0,97051.0,0.3656]
[1735291408160,0.23561253,97060.0,97036.0,0.051591]
[1735291408161,0.23561253,97060.0,97034.0,0.3656]
[1735291408363,0.28719853,97046.0,97034.0,0.11234569]
[1735291408562,0.23561253,97046.0,97034.0,0.11234569]